Cogmind - Beta 16 @@@ ROGUE MODE // 2025.12.07 @ 19:50:08 Player: AngelSpirit Result: Destroyed by YR-R1S(R) with Subdweller Shrapnel Launcher Performance ------------- Evolutions (0) 0 Regions Visited (2) 400 Robots Destroyed (28) 140 Value Destroyed (671) 671 Prototype IDs (0) 0 Alien Tech Used (0) 0 Bonus (0) 0 TOTAL SCORE: 1211 Bonus ------- None Cogmind --------- Core Integrity 0/250 Matter 294/300 Energy 249/250 System Corruption 0% Temperature Cool (0) Movement Rolling (130) Ox2 Location -10/Subcaves Parts ------- > --- POWER (1) -------- Ion Engine > --- PROPULSION (2) --- Subdweller Monowheel Subdweller Monowheel > --- UTILITY (2) ------ Huge Storage Unit Makeshift Thermal Plating > --- WEAPON (2) ------- Subdweller Beam Cannon Subdweller Machine Gun > --- INVENTORY (25) --- Ion Engine Light Ion Engine Light Ion Engine Subdweller Power Source Light Nuclear Core Wheel Wheel Subdweller Monowheel Disposable Heat Sink Disposable Heat Sink Large Matter Pod (150) High-capacity Matter Pod (148) Sensor Array Signal Interpreter Signal Interpreter Transport Network Coupler Hacking Suite Spread Laser Spread Laser Spread Laser Spread Laser Subdweller Laser Subdweller Machine Gun Light Cannon Shrapnel Trap Peak State ------------ > --- POWER ------------ Ion Engine > --- PROPULSION ------- Subdweller Monowheel Subdweller Monowheel > --- UTILITY ---------- Huge Storage Unit Makeshift Thermal Plating > --- WEAPON ----------- Subdweller Beam Cannon Subdweller Machine Gun > --- INVENTORY -------- Ion Engine Light Ion Engine Light Ion Engine Light Nuclear Core Wheel Wheel Disposable Heat Sink Disposable Heat Sink Large Matter Pod High-capacity Matter Pod Sensor Array Signal Interpreter Signal Interpreter Transport Network Coupler Hacking Suite Spread Laser Spread Laser Spread Laser Spread Laser Assault Rifle Subdweller Machine Gun Light Cannon Hammer Shrapnel Trap [Rating: 17] Favorites ----------- Power Ion Engine Engine Ion Engine Propulsion Wheel Wheel Wheel Utility Huge Storage Unit Device Sensor Array Storage Huge Storage Unit Processor Targeting Computer Protection Makeshift Thermal Plating Weapon Assault Rifle Energy Cannon Subdweller Beam Cannon Ballistic Gun Assault Rifle Impact Weapon Hammer Build | -11 -10 -10 ------- Run | Yrd Mat Sub Slots Evolved . | . . . Power . | . . . Propulsion . | . . . Utility . | . . . Weapon . | . . . Parts Attached 20 | 6 5 9 Power 2 | 1 1 . Engine 2 | 1 1 . Core . | . . . Reactor . | . . . Propulsion 6 | 2 . 4 Treads . | . . . Leg . | . . . Wheel 6 | 2 . 4 Hover . | . . . Flight . | . . . Utility 6 | 1 3 2 Device 1 | . . 1 Storage 2 | 1 1 . Processor 2 | . 2 . Hackware . | . . . Protection 1 | . . 1 Artifact . | . . . Weapon 6 | 2 1 3 Energy Gun . | . . . Energy Cannon 1 | . . 1 Ballistic Gun 4 | 2 . 2 Ballistic Cannon . | . . . Launcher . | . . . Special Weapon . | . . . Impact Weapon 1 | . 1 . Slashing Weapon . | . . . Piercing Weapon . | . . . Special Melee Weapon . | . . . Unidentified Prototypes . | . . . Parts Lost 2 | . . 2 Power . | . . . Propulsion 1 | . . 1 Utility . | . . . Weapon 1 | . . 1 Highest Loss Streak 1 | . . 1 To Critical Strikes 1 | . . 1 Average Backups 17 | . 12 24 Power 2 | . 2 4 Propulsion 2 | . 2 2 Utility 6 | . 4 8 Weapon 5 | . 3 8 Tool/Special . | . . . Unused Backups 27 | . 3 24 Power 4 | . . 4 Propulsion 3 | . . 3 Utility 8 | . . 8 Weapon 12 | . 3 9 Tool/Special . | . . . Average Slot Usage (%) 95 | . 92 99 Engine 14 | . 14 14 Wheel 27 | . 28 27 Device 3 | . . 8 Storage 14 | . 14 14 Processor 4 | . 7 . Protection 2 | . . 5 Energy Cannon 2 | . . 4 Ballistic Gun 24 | . 27 21 Impact Weapon 1 | . . 1 Peak Build Rating 17 | 6 10 17 Average Rating 10 | 4 7 13 On Entrance 5 | . 6 10 Avg Prop Armor Cover (%) . | . . . Naked Turns . | . . . Heaviest Build 101 | 12 89 101 Greatest Support 40 | 26 26 40 Greatest Overweight (x) 4 | . 3 4 Average Overweight (x) 2 | . 2 2 Largest Inventory Capacity 25 | 8 25 25 Average Capacity 22 | 6 21 25 Most Carried 25 | . 25 25 Average Carried 17 | . 12 24 Final Capacity 25 | 8 25 25 Final Carried 25 | . 24 25 Class Distribution -------------------- 84% | Mutant 15% | Scavenger-Mutant Dominant Class ---------------- Mutant | -10/Materials Mutant | -10/Subcaves Resources | -11 -10 -10 ----------- Run | Yrd Mat Sub Matter Collected 1132 | 260 538 334 Remotely . | . . . Salvage Created 886 | . 603 283 Parts 68 | . 47 21 Haulers Intercepted 2 | . 2 . Recyclers Shooed . | . . . Parts Field Recycled . | . . . Retrieved Matter . | . . . Parts Self-Destructed . | . . . Prevented . | . . . Parts Restored . | . . . Kills | -11 -10 -10 ------- Run | Yrd Mat Sub Combat Hostiles Destroyed 17 | . 10 7 Guns 12 | . 10 2 Cannons 5 | . . 5 Classes Destroyed 9 | . 8 1 Worker 2 | . 2 . Builder 2 | . 2 . Tunneler 1 | . 1 . Hauler 2 | . 2 . Operator 1 | . 1 . Watcher 3 | . 3 . Swarmer 3 | . 3 . Grunt 7 | . 7 . Subdweller 7 | . . 7 Best Kill Streak 3 | . 3 3 Combat Bots Only 3 | . 3 3 Max Kills in Single Turn 2 | . 2 1 Gunslinging . | . . . Exploded . | . . . Melee . | . . . Uniques/NPCs Destroyed . | . . . Combat | -11 -10 -10 -------- Run | Yrd Mat Sub Hostile Shots Fired 59 | . 28 31 Missed 21 | . 13 8 Hits 38 | . 15 23 Projectile 38 | . 15 23 AOE 3 | . . 3 Critical Strikes 2 | . 1 1 Damage Taken 807 | . 226 581 Core 271 | . 79 192 Absorbed by Shields . | . . . Ignored by Resistances 7 | . . 7 Core Remaining (%) 100 | 100 . . Volleys Fired 112 | . 51 61 Largest 2 | . 2 2 Hottest 110 | . 40 110 Shots Fired 192 | . 102 90 Gun 146 | . 102 44 Cannon 46 | . . 46 Launcher . | . . . Special . | . . . Kinetic 146 | . 102 44 Thermal 46 | . . 46 Explosive . | . . . Electromagnetic . | . . . Robot Hit Streak 15 | . 15 8 Robot Miss Streak 7 | . 7 2 Penetration Max . | . . . Secondary Targets . | . . . Shots Hit Robots 89 | . 55 34 Core Hits 45 | . 32 13 Critical Kills . | . . . Critical Parts Destroyed . | . . . Critical Strikes . | . . . Melee Attacks 7 | . 2 5 Impact 7 | . 2 5 Slashing . | . . . Piercing . | . . . Sneak Attacks . | . . . Combat Hostiles . | . . . Follow-up Attacks . | . . . Damage Inflicted 1472 | . 729 743 Guns 1171 | . 729 442 Cannons 301 | . . 301 Explosions . | . . . Melee . | . . . Ramming . | . . . Kinetic 1171 | . 729 442 Thermal 301 | . . 301 Explosive . | . . . Electromagnetic . | . . . Impact . | . . . Slashing . | . . . Piercing . | . . . Highest Corruption . | . . . Average Corruption . | . . . Corruption Purged . | . . . Corruption Blocked . | . . . Overload Shots . | . . . Overflow Damage . | . . . Projectiles . | . . . Explosions . | . . . Melee . | . . . Knockbacks . | . . . Impact . | . . . Kinetic . | . . . Secondary . | . . . Self-Inflicted Damage . | . . . Shots . | . . . Rammed . | . . . Targets Rammed . | . . . Kicked . | . . . Crushed . | . . . Highest Temperature 40 | . 20 40 Average Temperature 13 | . 10 13 Received Heat Transfer 102 | . 84 18 Siege Activations . | . . . Martial Activations . | . . . Shielding Activations . | . . . Robots Disrupted . | . . . Combat Hostiles . | . . . Robots Corrupted . | . . . Combat Hostiles . | . . . Parts Fried . | . . . Impact Corruptions . | . . . Robots Melted . | . . . Combat Hostiles . | . . . Parts Melted . | . . . Heat Transferred 407 | . . 407 Parts Sabotaged . | . . . Parts Stolen . | . . . Parts Stripped . | . . . Power Chain Reactions . | . . . Alert | -11 -10 -10 ------- Run | Yrd Mat Sub Maximum Alert Level . | . . . Low Security (%) 100 | 100 100 . Level 1 . | . . . Level 2 . | . . . Level 3 . | . . . Level 4 . | . . . Level 5 . | . . . High Security . | . . . Max Security . | . . . Peak Influence 79 | . 79 . Initial . | . . . Average 21 | . 22 . Influence Increases 402 | . 402 . Destroy 0b10 Robot/C 200 | . 200 . Destroy 0b10 Robot/NC 55 | . 55 . Destroy Leader 60 | . 60 . Successful Hack 10 | . 10 . Disable Machine 15 | . 15 . Destroy Structure 2 | . 2 . Partial Spotted 30 | . 30 . Lose Combat Pursuer 30 | . 30 . Influence Decreases 402 | . 397 5 Entered New Map 3 | . . 3 Time Decay 399 | . 397 2 Squads Dispatched 2 | . 2 . Investigation 1 | . 1 . Extermination . | . . . Reinforcement 1 | . 1 . Assault . | . . . Garrison . | . . . Intercept . | . . . Searches Triggered . | . . . Construction Impeded . | . . . Haulers Reinforced . | . . . Active Scanning Responses . | . . . Cargo Convoy Interrupts . | . . . Stealth | -11 -10 -10 --------- Run | Yrd Mat Sub Distress Signals 1 | . 1 . Communications Jammed . | . . . Distress Signals . | . . . Times Spotted 29 | . 21 8 Peak Tracking Total 3 | . 3 2 Tactical Retreats 1 | . 1 . Traps | -11 -10 -10 ------- Run | Yrd Mat Sub Traps Triggered 3 | . 3 . Indirectly . | . . . Trap Hack Attempts . | . . . Triggered . | . . . Disarmed . | . . . Reprogrammed . | . . . Reused . | . . . Traps Extracted . | . . . Installed . | . . . Triggered . | . . . Most Traps Carried 1 | . . 1 Machines | -11 -10 -10 ---------- Run | Yrd Mat Sub Machines Disabled 1 | . 1 . Max in Single Turn 1 | . 1 . Machines Repaired . | . . . Machines Dismantled . | . . . Machines Sabotaged . | . . . Overloaded Fab Kills . | . . . Hacking | -11 -10 -10 --------- Run | Yrd Mat Sub Machines Accessed 9 | . 9 . Terminals 7 | . 7 . Fabricators . | . . . Repair Stations 1 | . 1 . Recycling Units 1 | . 1 . Scanalyzers . | . . . Garrison Access . | . . . Total Hacks 23 | . 23 . Successful 9 | . 9 . Failed 13 | . 13 . Catastrophic 1 | . 1 . Database Lockouts 1 | . 1 . Manual 14 | . 14 . Terminals 21 | . 21 . Fabricators . | . . . Repair Stations 1 | . 1 . Recycling Units 1 | . 1 . Scanalyzers . | . . . Garrison Access . | . . . Terminal Hacks 6 | . 6 . Robot Analysis 2 | . 2 . Emergency Access Points 1 | . 1 . Alert Level 1 | . 1 . Hauler Manifests 1 | . 1 . Registered Components 1 | . 1 . Fabricator Hacks . | . . . Repair Station Hacks . | . . . Recycling Unit Hacks 1 | . 1 . Report Inventory 1 | . 1 . Scanalyzer . | . . . Garrison Access Hacks . | . . . Unauthorized Hacks 2 | . 2 . Terminals 2 | . 2 . Botnet 1 | . 1 . Operators 1 | . 1 . Fabricators . | . . . Repair Stations . | . . . Recycling Units . | . . . Scanalyzers . | . . . Garrison Access . | . . . Data Cores Recovered . | . . . Used . | . . . Hacking Detections 9 | . 9 . Full Trace Events 1 | . 1 . Feedback Events . | . . . Feedback Blocked . | . . . Robot Schematics Acquired . | . . . Robots Built . | . . . Authchips . | . . . Time . | . . . Total Robot Build Rating . | . . . Part Schematics Acquired . | . . . Parts Built . | . . . Authchips . | . . . Time . | . . . Total Part Build Rating . | . . . Part Studies Acquired . | . . . Parts Repaired . | . . . Time . | . . . Parts Recycled . | . . . Recycled Matter . | . . . Retrieved Matter . | . . . Retrieved Components . | . . . Parts Scanalyzed . | . . . Part Schematics Acquired . | . . . Parts Damaged . | . . . Bothacking | -11 -10 -10 ------------ Run | Yrd Mat Sub Used RIF Installer . | . . . Robots Hacked . | . . . Non-combat . | . . . Combat . | . . . Robot Hacks Applied . | . . . Relay Couplers Released . | . . . Fabnet Peak Effective % . | . . . Robots Rewired . | . . . Allies Hacked . | . . . Hacks Repelled . | . . . Allies | -11 -10 -10 -------- Run | Yrd Mat Sub Total Allies . | . . . Largest Group . | . . . Highest-Rated Group . | . . . Highest-Rated Ally . | . . . Total Orders . | . . . Ally Attacks . | . . . Total Damage . | . . . Kills . | . . . Allies Corrupted . | . . . Allies Melted . | . . . Intel | -11 -10 -10 ------- Run | Yrd Mat Sub Active Infowar (turns) 700 | . 2 698 Sensors 698 | . . 698 T.N.C. 2 | . 2 . Robot Analysis Total 2 | . 2 . Derelict Logs Recovered . | . . . Drone Launches . | . . . Drone Recoveries . | . . . Exploration | -11 -10 -10 ------------- Run | Yrd Mat Sub Turns Passed 2648 | 40 1439 1169 Spaces Moved 1683 | 35 923 725 Core 1 | 1 . . Treads . | . . . Legs . | . . . Wheels 1682 | 34 923 725 Hover . | . . . Flight . | . . . Fastest Speed 50 | 50 90 130 Average Speed 127 | 90 124 132 Slowest Speed 140 | 100 135 140 Overloaded Moves . | . . . Propulsion Burnouts . | . . . Robots Hopped . | . . . Potential Cave-ins . | . . . Cave-ins Triggered . | . . . Exploration Rate (%) 46 | 3 99 36 Regions Visited 2 Branch Regions 1 Pre-discovered Areas . | . . . Known Exits Taken . | . . . Unknown Exits Taken 2 | 1 1 . Scrap Searched . | . . . Spaces Dug 1 | . 1 . Terrain Destroyed 4 | . 1 3 Melee 1 | . 1 . Projectile 3 | . . 3 AOE . | . . . Terrain Rammed . | . . . Walls Destroyed . | . . . Machines Disabled . | . . . Actions | -11 -10 -10 --------- Run | Yrd Mat Sub Total 1981 | 40 1103 838 Wait 109 | . 91 18 Move 1681 | 34 922 725 Hop . | . . . Pick Up 35 | . 26 9 Fast Attach 11 | 6 3 2 Attach 3 | . . 3 Detach . | . . . Swap 10 | . 3 7 Drop 13 | . 5 8 Fire 112 | . 51 61 Melee 7 | . 2 5 Ram . | . . . Kick . | . . . Crush . | . . . Escape Stasis . | . . . Rewire . | . . . Trap . | . . . Miscellaneous . | . . . Route ------- -11/Scrapyard -10/Materials (discovered 5 exits: [*Mat x3] / [*Min] / [*Sub]) -10/Subcaves (discovered 2 exits: [*Mat x2]) History --------- Turn | Location | Event 12 | -11/Scrapyard | Discovered new exit (range 16) 41 | -11/Scrapyard | Entered Materials 103 | -10/Materials | Discovered new exit (range 15) 119 | -10/Materials | Discovered new exit (range 15) 302 | -10/Materials | Build established: Mutant 742 | -10/Materials | Discovered new exit (range 3) 1149 | -10/Materials | Discovered new exit (range 15) 1256 | -10/Materials | Central database locked down 1449 | -10/Materials | Discovered new exit (range 8) 1480 | -10/Materials | Entered Subcaves 1481 | -10/Subcaves | Shifting Twisted Machinery released Sub. Machine Gun 1484 | -10/Subcaves | Shifting Twisted Machinery released Mak. Thermal Plating 1511 | -10/Subcaves | Discovered new exit (range 9) 1944 | -10/Subcaves | A swath of the cavern ceiling suddenly collapsed 2243 | -10/Subcaves | Core integrity fell below 50% 2303 | -10/Subcaves | Discovered new exit (range 12) 2453 | -10/Subcaves | Shifting Twisted Machinery released Spk. Treads 2457 | -10/Subcaves | Shifting Twisted Machinery released Shrapnel Trap 2544 | -10/Subcaves | Build established: Scavenger-Mutant 2648 | -10/Subcaves | Core integrity fell below 20% 2649 | -10/Subcaves | Destroyed by YR-R1S(R) with Subdweller Shrapnel Launcher Last Messages --------------- 02382_ 90-OCD(u) builds Twisted Machinery. 02402_ 90-OCD(u) tweaks Twisted Machinery. Spk. Treads falls loose from the Twisted Machinery. Shrapnel Trap falls loose from the Twisted Machinery. 02465_ Acquired Shrapnel Trap. 02553_ XH-0RM(R) destroyed. 02557_ ZM-F0M(R) destroyed. 02560_ Acquired 50 matter. 02563_ Dropped Wheel. 02564_ Acquired Sub. Monowheel. 02566_ Acquired Sub. Laser. 02567_ Dropped Assault Rifle. 02569_ Acquired 34 matter. 02572_ Acquired Sub. Monowheel. 02574_ Dropped Hammer. 02575_ Acquired Sub. Power Source. 02646_ YR-R1S(R) affixes Scrap Shield Fragment to Scrap Shield. Map ----- +----------------------------------------------------+ | ????????????????????????????????????? | | ????????????????????????????????????? | | ????????????????????????????????????? | | ????????????????????????????????????? | | ????????????????????????????????????? | | ????????????????????????????????????? | | ????????????????????????????????????? | | ????????????????? ##???????????????? | | ????????????????? #???????????????? | | ???????????????? ???????????????? | | ???????????????? ??????##???????? | | ????????????????# ?????# #???????? | | ????????????????# ????# ##??????? | | ????????????????# ????# ###????? | | ????????????????# #???? ?????? | | ???##$ ?????????# #??? ?????? | | ???# ????????## #??# ??????? | | ???# $ ???????# ### ????????? | | ???# $??#####< ??????????? | | ???# $ ??# # # #???????????? | | ???#$ $ ?# # #???###??????? | | ???# $<## && #????## #??????? | | ??## ;; [; ###### #??????? | | ??#; ! ; ## #??????? | | ??## & / ; #??????? | | ??#; @ &;# #??????? | | ???#< # #??????? | | ???#< R ;# ##??????? | | ???## ;; ####???????? | | ????###; ; # ####??????????? | | ??????########## ##?######?????? | | ???????????????# ### ##"######? | | ??????????????## ### ## "## | | ??????????????# ##" " ## " # | | ??????????????# ###" "" ##""" | | ??????????????## # # """ | | ???????????????#### """"= | | ?????????????????# """"" | | ?????????????????## ##"" "" ## | | ??????????????????####### ###### #? | | ????????????????????????####????#" # | | ???????????????????????????####? ""## | | ??????????????????????????## ## ##? | | ?????????????????????###??#"" ####?? | | ?????????????????????# #####"" "##?## | | ?????????????????????# #### ""### | | ?????????????????????# #??# ## | | ????????????????????## ##?# # | | ????????????????????# #?# " ## | | ????????????????????#"" ####""" #? | +----------------------------------------------------+ Best States ------------- Heat Dissipation 25 Energy Generation 10 Energy Capacity 250 Matter Stores 300 Matter Capacity 300 Sight Range 16 Robot Scan Range 14 Terrain Scan Density 10 Armor Coverage 100 Resistance: TH 10 Evasion (%) 42 Targeting Accuracy 5 Item Schematics ----------------- None Robot Schematics ------------------ None Fabricated ------------ Nothing Repaired ---------- Nothing Studied --------- None Alien Tech Used ----------------- None Achievements -------------- None Challenges ------------ None Game ------ Seed TractorPlexusTerrabomb Manual? 0 Play Time 00:18:00 Cumulative 160.6 hours Start 2025.12.07 @ 19:34:14 End 2025.12.07 @ 19:50:08 Sessions 1 Manual Loads 0 Difficulty Rogue Special Mode None Game No. 88 Rogue 88 Adventurer 0 Explorer 0 Win Type - Total 1 Types 1/0/0/0/0/0/0/0/0/0 Lore% 69 Gallery% 62 Achievement% 51 Wizard Run 0 Options --------- Layout 1 ASCII 0 Keyboard 0 Movement Mouse Keybinds 0 Fullscreen 2 Font 32/SmallcapsGlow Map View 50x35 Zoom Use 0% Tactical HUD 1 Map Filters NONE Filters NONE Steam 1 RUN: 5a4328e3-bcc7-40cb-a7d7-bcb1fbaf54d3